bitfinex/quotes_BTCUSD_20220218
["timestamp","ask_amount","ask_price","bid_price","bid_amount"]
[1645203518665,0.20816079,40072.0,40054.0,0.62573876]
[1645203518865,0.20816079,40072.0,40067.0,0.00020553]
[1645203518866,0.2306,40071.0,40067.0,0.00020553]
[1645203519469,0.2306,40071.0,40067.0,5.53e-06]
[1645203519470,0.09927,40068.0,40067.0,5.53e-06]
[1645203520065,0.12128901,40067.0,40061.0,0.00020554]
[1645203520269,0.0937664,40064.0,40061.0,0.00020554]
[1645203520476,1.55,40062.0,40049.0,0.41402111]
[1645203520730,0.0937664,40050.0,40041.0,0.0123145]
[1645203521019,0.1,40059.0,40041.0,0.0123145]
[1645203521020,0.0937664,40048.0,40041.0,0.0123145]
[1645203521219,0.0937664,40052.0,40041.0,0.0073145]
[1645203521418,0.87869,40055.0,40041.0,0.0023145]
[1645203521818,0.6724564,40055.0,40041.0,0.0023145]
[1645203522016,0.57869,40055.0,40041.0,0.0023145]
[1645203522218,0.3,40054.0,40041.0,0.0023145]
[1645203522419,0.6724564,40055.0,40041.0,0.0023145]
[1645203522420,0.57869,40055.0,40041.0,0.0023145]
[1645203522619,0.57869,40055.0,40043.0,0.0062336]
[1645203522620,0.20779,40055.0,40043.0,0.0062336]
[1645203522817,0.20779,40055.0,40049.0,0.10314095]
[1645203523019,0.20779,40055.0,40044.0,0.05]
[1645203523327,0.20779,40055.0,40041.0,0.0023145]
[1645203523518,0.0937664,40053.0,40041.0,0.0023145]
[1645203523718,0.20779,40055.0,40041.0,0.00250069]
[1645203523920,0.20779,40055.0,40043.0,0.05]
[1645203524120,0.30499787,40053.0,40046.0,0.10522913]
[1645203524319,0.20779,40055.0,40046.0,0.10522913]
[1645203524566,0.3015564,40055.0,40046.0,0.05]
[1645203524868,0.3015564,40055.0,40044.0,0.05]
[1645203525070,0.20779,40055.0,40043.0,0.05]
[1645203525269,0.0937664,40051.0,40043.0,0.05]
[1645203525467,0.3,40054.0,40043.0,0.05]
[1645203525666,0.22520765,40051.0,40041.0,0.00250069]
[1645203525872,0.0887664,40045.0,40041.0,0.00250069]
[1645203526067,0.0887664,40045.0,40041.0,0.00250334]
[1645203526268,0.22520765,40051.0,40041.0,0.00250334]
[1645203526269,0.0887664,40042.0,40041.0,0.00250334]
[1645203526467,0.32520765,40051.0,40041.0,0.00250334]
[1645203526468,0.0887664,40045.0,40041.0,0.00250334]
[1645203526667,0.33467612,40043.0,40041.0,0.00250334]
[1645203526868,0.0887664,40045.0,40041.0,0.00250334]
[1645203527168,0.0887664,40045.0,40041.0,0.0023145]
[1645203527373,0.0887664,40045.0,40027.0,0.000628]
[1645203527374,1.55,40041.0,40027.0,0.000628]
[1645203527573,0.3,40040.0,40027.0,0.000628]
[1645203527771,0.0887664,40034.0,40027.0,0.000628]
[1645203527970,0.00178784,40033.0,40027.0,0.000628]
[1645203528815,0.0887664,40028.0,40027.0,0.000628]
[1645203529015,0.3,40037.0,40033.0,0.08110847]
[1645203529016,0.3981,40036.0,40033.0,0.08110847]
[1645203529212,1.10275294,40035.0,40027.0,0.00044703]
[1645203529417,1.10275294,40035.0,40007.0,1.08511609]
[1645203529418,1.55,40033.0,40014.0,0.02220818]
[1645203529615,1.55,40033.0,40007.0,0.85811609]
[1645203529616,1.309913,40029.0,40007.0,0.02105233]
[1645203529821,1.55,40033.0,40007.0,0.02105233]
[1645203529822,1.4,40015.0,40007.0,0.02105233]
[1645203530016,0.0458,40023.0,40007.0,0.02105233]
[1645203530217,0.0458,40023.0,40013.0,0.1]
[1645203530416,0.26864936,40021.0,40007.0,0.02105233]
[1645203530615,0.08340844,40025.0,40013.0,0.1]
[1645203530920,0.05,40027.0,40013.0,0.13484879]
[1645203531115,0.05,40027.0,40009.0,0.00199471]
[1645203531317,1.277744,40026.0,40009.0,0.00199471]
[1645203531518,0.3458,40026.0,40009.0,0.00199471]
[1645203531717,0.0458,40026.0,40009.0,0.00199471]
[1645203532166,0.3,40026.0,40010.0,7.539e-05]
[1645203532368,0.42502512,40032.0,40010.0,7.539e-05]
[1645203532565,0.977744,40031.0,40012.0,0.1]
[1645203532964,0.062511,40031.0,40010.0,7.539e-05]
[1645203533165,0.25020173,40022.0,40010.0,7.539e-05]
[1645203533365,0.25020173,40022.0,40014.0,0.0988761]
[1645203533570,0.12502512,40032.0,40014.0,0.0988761]
[1645203533765,0.12502512,40032.0,40015.0,0.3]
[1645203533965,0.423005,40036.0,40017.0,0.1]
[1645203534166,0.423005,40036.0,40014.0,0.1488761]
[1645203534167,0.3147,40036.0,40021.0,0.1]
[1645203534366,0.3096,40035.0,40021.0,0.05]
[1645203534567,0.30557035,40028.0,40023.0,0.10260168]
[1645203535818,0.22119163,40033.0,40023.0,0.10260168]
[1645203536417,0.22119163,40033.0,40017.0,0.00018294]
[1645203536618,0.3,40032.0,40017.0,0.00018294]
[1645203536817,0.22119163,40033.0,40020.0,0.00018294]
[1645203537217,0.27119163,40033.0,40020.0,0.00018294]
[1645203537417,0.22119163,40033.0,40028.0,0.12179565]
[1645203537618,0.22119163,40033.0,40020.0,0.00018294]
[1645203537819,0.3,40032.0,40020.0,0.00018294]
[1645203538016,0.22119163,40033.0,40020.0,0.00018294]
[1645203538216,0.22119163,40033.0,40019.0,0.3]
[1645203538417,0.28071424,40028.0,40019.0,0.3]
[1645203538618,0.28071424,40028.0,40023.0,0.10261363]
[1645203539462,0.22119163,40033.0,40023.0,0.10261363]
[1645203539866,0.0096,40035.0,40025.0,0.1]
[1645203540268,0.6816,40038.0,40025.0,0.1]
[1645203540269,0.6816,40038.0,40031.0,0.1]
[1645203540464,0.6816,40038.0,40032.0,0.0358]
[1645203540465,0.3981,40038.0,40032.0,0.0358]
[1645203540663,0.3717,40042.0,40033.0,0.0458]
[1645203540866,0.3717,40042.0,40039.0,0.1]
[1645203541064,0.05,40045.0,40040.0,0.0458]
[1645203541264,0.332169,40044.0,40036.0,0.0458]
[1645203541469,0.21751984,40046.0,40033.0,0.05]
[1645203541665,0.0093,40045.0,40029.0,0.0458]
[1645203541865,0.0093,40045.0,40032.0,0.00016768]
[1645203542067,0.29825839,40041.0,40032.0,0.00016768]
[1645203542567,9.0093,40045.0,40038.0,0.10164469]
[1645203543242,9.0093,40045.0,40030.0,0.3]
[1645203543428,0.33252842,40037.0,40030.0,0.05]
[1645203543629,0.33252842,40037.0,40030.0,0.0502268]
[1645203543829,9.0,40033.0,40030.0,0.0002268]
[1645203544033,9.0,40033.0,40029.0,0.0460268]
[1645203544230,9.0,40033.0,40032.0,0.1]
[1645203544630,9.0,40033.0,40031.0,0.05]
[1645203545030,9.0,40033.0,40031.0,0.1]
[1645203545229,9.0,40033.0,40030.0,0.17860829]
[1645203545431,9.0,40033.0,40030.0,0.30355329]
[1645203545730,9.0,40033.0,40030.0,0.34935329]
[1645203545930,9.0,40033.0,40030.0,0.32440829]
[1645203546130,9.0,40033.0,40030.0,0.17440829]
[1645203546331,0.32542319,40032.0,40030.0,0.17440829]
[1645203546965,0.23533011,40031.0,40028.0,0.0002268]
[1645203547167,0.23533011,40031.0,40027.0,0.0002268]
[1645203547365,1.7902,40030.0,40023.0,0.00016479]
[1645203548363,0.27010582,40027.0,40023.0,0.00016479]
[1645203548565,1.7902,40030.0,40023.0,0.00016479]
[1645203548964,1.7902,40030.0,40018.0,0.10016495]
[1645203549170,0.3,40029.0,40018.0,0.10016495]
[1645203549967,0.3,40029.0,40018.0,0.00016495]
[1645203550169,0.3,40029.0,40015.0,0.00016826]
[1645203550370,0.06251507,40026.0,40009.0,0.00086297]
[1645203550567,0.3,40025.0,40009.0,0.00086297]
[1645203550814,0.32816115,40012.0,40007.0,0.02105233]
[1645203551013,0.1503895,40016.0,40007.0,0.02105233]
[1645203552013,0.3817895,40016.0,40007.0,0.02105233]
[1645203552215,0.0098,40015.0,40007.0,0.02105233]
[1645203552616,0.0098,40015.0,40008.0,0.2085443]
[1645203552816,0.0098,40015.0,40008.0,0.2585443]
[1645203553218,0.0098,40015.0,40009.0,0.125026]
[1645203553516,0.0098,40015.0,40010.0,0.062512]
[1645203553716,0.0098,40015.0,40010.0,0.112512]
[1645203553918,8.998284,40013.0,40010.0,0.04]
[1645203554116,8.998284,40013.0,40009.0,0.062516]
[1645203554759,0.31928872,40012.0,40009.0,0.062516]
[1645203554960,8.998284,40013.0,40009.0,0.062516]
[1645203556061,8.998284,40013.0,40008.0,0.1585443]
[1645203556261,8.998284,40013.0,40009.0,0.062519]
[1645203556465,9.27273709,40013.0,40009.0,0.062519]
[1645203557866,9.27273709,40013.0,40008.0,0.1585443]
[1645203558316,8.998284,40013.0,40011.0,0.1]
[1645203558713,8.998284,40013.0,40012.0,0.0458]
[1645203558913,8.14888091,40013.0,40012.0,0.0458]
[1645203559519,0.29278926,40015.0,40008.0,0.35856464]
[1645203559520,7.57803191,40009.0,40008.0,0.35856464]
[1645203560016,7.57803191,40009.0,40008.0,0.25002034]
[1645203560220,7.57803191,40009.0,40005.0,0.426131]
[1645203560418,7.57803191,40009.0,40005.0,0.3011]
[1645203560617,0.48170179,40008.0,40005.0,0.3011]
[1645203560815,7.49331002,40009.0,40005.0,0.29985]
[1645203561717,0.26304355,40008.0,40005.0,0.29985]
[1645203563564,0.46303389,40008.0,40005.0,0.29985]
[1645203563963,0.26304355,40008.0,40005.0,0.29985]
[1645203565565,7.49331002,40009.0,40005.0,0.29985]
[1645203566022,6.09048768,40009.0,40005.0,0.29985]
[1645203566219,6.09048768,40009.0,40006.0,0.0458]
[1645203566417,6.09048768,40009.0,40007.0,0.17109249]
[1645203566617,6.09048768,40009.0,40008.0,0.36595038]
[1645203566819,4.49104081,40003.0,40002.0,0.252188]
[1645203567018,4.49104081,40003.0,40002.0,0.322188]
[1645203567317,4.11599481,40003.0,40002.0,0.372188]
[1645203567718,4.11599481,40003.0,40002.0,0.52702166]
[1645203567719,3.94163909,40003.0,40002.0,0.52702166]
[1645203568019,3.94163909,40003.0,40002.0,0.80608039]
[1645203568218,3.94163909,40003.0,40002.0,0.90608039]
[1645203568418,3.94163909,40003.0,40002.0,0.96358939]
[1645203568618,3.20123238,40003.0,40002.0,0.96358939]
[1645203568818,3.20123238,40003.0,40002.0,0.85455573]
[1645203569019,2.35173903,40003.0,40002.0,0.85455573]
[1645203569468,2.35173903,40003.0,40002.0,1.11605215]
[1645203569672,0.3838,40031.0,40009.0,0.15]
[1645203569873,0.2316,40030.0,40011.0,0.21043513]
[1645203570074,0.3,40029.0,40013.0,0.187474]
[1645203570270,0.2316,40030.0,40014.0,0.0458]
[1645203570670,0.2316,40030.0,40015.0,0.0018]
[1645203570869,0.2316,40030.0,40019.0,0.062492]
[1645203571071,0.2316,40030.0,40021.0,0.12498368]
[1645203571270,0.2316,40030.0,40022.0,0.0458]
[1645203571470,0.2316,40030.0,40022.0,0.0408]
[1645203571873,0.2316,40030.0,40022.0,0.3408]
[1645203572471,0.2316,40030.0,40025.0,0.062486]
[1645203572872,0.2316,40030.0,40025.0,0.362486]
[1645203573071,0.2316,40030.0,40026.0,0.0458]
[1645203573517,0.2316,40030.0,40026.0,0.170774]
[1645203573915,0.0099,40035.0,40026.0,0.170774]
[1645203574117,0.124967,40057.0,40026.0,0.170774]
[1645203574119,0.319708,40043.0,40028.0,0.28708779]
[1645203574317,0.3612,40047.0,40029.0,0.458274]
[1645203574515,0.3703,40047.0,40030.0,0.0477]
[1645203574717,0.3703,40047.0,40035.0,0.062464]
[1645203574916,0.3703,40047.0,40036.0,0.3458]
[1645203575117,0.09815547,40043.0,40036.0,0.3458]
[1645203575324,0.09815547,40043.0,40037.0,0.12492]
[1645203575515,0.09815547,40043.0,40038.0,0.0458]
[1645203575716,0.3703,40047.0,40038.0,0.0458]
[1645203575916,0.3703,40047.0,40038.0,0.3458]
[1645203576116,0.3703,40047.0,40038.0,0.0458]
[1645203576117,0.1,40042.0,40038.0,0.0458]
[1645203576316,0.29729154,40042.0,40038.0,0.0458]
[1645203576973,0.54830216,40042.0,40038.0,0.0458]
[1645203577174,0.11032651,40046.0,40038.0,0.0458]
[1645203577375,0.11032651,40046.0,40039.0,0.062469]
[1645203577574,0.3703,40047.0,40040.0,0.0458]
[1645203578079,0.22929671,40043.0,40040.0,0.0458]
[1645203578274,0.4703,40047.0,40040.0,0.0458]
[1645203578474,0.09503967,40045.0,40040.0,0.0458]
[1645203579075,2.527744,40044.0,40031.0,0.123161]
[1645203579278,2.527744,40044.0,40023.0,0.1]
[1645203579279,0.1,40033.0,40026.0,0.00022561]
[1645203579475,1.6,40044.0,40025.0,0.00022561]
[1645203579476,0.1,40028.0,40025.0,0.00022561]
[1645203579677,0.10101787,40027.0,40021.0,0.00022561]
[1645203579875,0.10101787,40027.0,40018.0,0.00022561]
[1645203580075,0.27683142,40025.0,40018.0,0.062498]
[1645203580276,0.25494804,40030.0,40018.0,0.06272361]
[1645203580475,0.1,40027.0,40018.0,0.06272361]
[1645203580914,0.25494804,40030.0,40018.0,0.06272361]
[1645203580915,0.35494804,40030.0,40018.0,0.06272361]
[1645203581119,0.1,40030.0,40018.0,0.06272361]
[1645203581319,0.571,40034.0,40018.0,0.05772361]
[1645203581518,0.1,40033.0,40018.0,0.05772361]
[1645203581716,0.1,40033.0,40024.0,0.062476]
[1645203582315,0.32056261,40032.0,40024.0,0.124952]
[1645203582814,0.32056261,40032.0,40024.0,0.12517761]
[1645203583616,0.1,40025.0,40015.0,0.33602371]
[1645203583818,1.85,40031.0,40012.0,0.02073106]
[1645203583819,0.1,40016.0,40012.0,0.02073106]
[1645203584216,0.1,40015.0,40012.0,0.02073106]
[1645203584464,0.0092,40021.0,40012.0,0.02073106]
[1645203584465,0.1,40018.0,40012.0,0.02073106]
[1645203584664,0.0092,40021.0,40012.0,0.14537315]
[1645203585065,0.0092,40021.0,40012.0,0.14529209]
[1645203585267,0.0092,40021.0,40014.0,0.062497]
[1645203585870,0.0092,40021.0,40013.0,0.05]
[1645203587068,0.0092,40021.0,40019.0,0.10255825]
[1645203587367,0.306697,40023.0,40019.0,0.10255825]
[1645203587567,0.306697,40023.0,40013.0,0.05]
[1645203587767,0.1,40025.0,40013.0,0.05]
[1645203587768,0.0099,40024.0,40013.0,0.05]
[1645203588720,0.1,40025.0,40013.0,0.05]
[1645203588919,0.36149469,40025.0,40013.0,0.05]
[1645203589120,0.0096,40024.0,40013.0,0.05]
[1645203589520,0.36149469,40025.0,40013.0,0.112498]
[1645203589726,0.1,40015.0,40007.0,0.125003]
[1645203589924,0.64524885,40014.0,40011.0,5.32e-06]
[1645203590126,0.332169,40011.0,40002.0,0.0021]
[1645203590322,1.882169,40001.0,40000.0,1.01917622]
[1645203590525,1.882169,40001.0,40000.0,0.1398516]
[1645203590526,1.61689,40001.0,40000.0,0.1398516]
[1645203590826,1.8403644,40001.0,40000.0,0.1398516]
[1645203591026,1.27380069,40001.0,40000.0,0.1398516]
[1645203591223,1.27380069,40001.0,39995.0,1.96e-05]
[1645203591224,0.332169,39999.0,39995.0,1.96e-05]
[1645203591430,0.532169,39996.0,39988.0,0.0010496]
[1645203591634,0.0458,39999.0,39982.0,0.00341534]
[1645203591635,0.332169,39986.0,39982.0,0.00341534]
[1645203591823,0.332169,39986.0,39981.0,0.0086]
[1645203591824,0.1,39983.0,39981.0,0.0086]
[1645203592067,0.24854485,39982.0,39981.0,0.0036]
[1645203592268,0.49920194,39982.0,39981.0,0.0036]
[1645203592671,0.0093,39985.0,39981.0,0.0036]
[1645203593270,0.0093,39985.0,39981.0,0.0001]
[1645203593672,0.37444707,39985.0,39981.0,0.0001]
[1645203593870,0.27444707,39985.0,39981.0,0.0001]
[1645203594269,0.1,39984.0,39981.0,0.0001]
[1645203594470,1.55,39983.0,39980.0,0.0001]
[1645203594673,0.0093,39985.0,39974.0,1.00348055]
[1645203594674,0.09950308,39981.0,39974.0,1.00348055]
[1645203594872,0.1093,39985.0,39974.0,0.99848055]
[1645203594873,0.09950308,39977.0,39974.0,0.99848055]
[1645203595070,0.0093,39985.0,39974.0,0.99848055]
[1645203595269,0.10880308,39985.0,39974.0,0.99848055]
[1645203595471,0.41777651,39982.0,39974.0,0.99848055]
[1645203595916,0.0093,39985.0,39974.0,0.99848055]
[1645203596118,0.41287399,39992.0,39976.0,0.05049692]
[1645203596119,0.3503,39992.0,39976.0,0.05049692]
[1645203596321,0.3503,39992.0,39977.0,0.0458]
[1645203596518,0.3503,39992.0,39976.0,0.05]
[1645203596717,0.3503,39992.0,39974.0,0.99848055]
[1645203596718,0.09950308,39987.0,39974.0,0.99848055]
[1645203596917,0.26725716,39986.0,39979.0,0.11543774]
[1645203597117,0.26725716,39986.0,39974.0,0.99848055]
[1645203597517,0.26725716,39986.0,39974.0,0.78848055]
[1645203598119,0.3,39990.0,39974.0,0.78848055]
[1645203598321,0.3,39990.0,39971.0,0.0021]
[1645203598322,1.55,39978.0,39971.0,0.0021]
[1645203598524,1.64950308,39976.0,39967.0,0.0011]
[1645203598719,0.35,39975.0,39965.0,0.53021726]
[1645203599321,0.26158912,39971.0,39965.0,0.53021726]
[1645203599571,0.09950308,39969.0,39965.0,0.53021726]
[1645203599968,0.09950308,39970.0,39965.0,0.52021726]
[1645203600173,0.31373499,39976.0,39965.0,0.52021726]
[1645203600371,0.31373499,39976.0,39975.0,0.77933707]
[1645203600372,0.09950308,39976.0,39975.0,0.77933707]
[1645203601171,0.0096,39977.0,39975.0,0.77933707]
[1645203601371,0.00580644,39981.0,39975.0,0.77933707]
[1645203601971,0.00580644,39981.0,39977.0,0.12110679]
[1645203602471,0.0098,39990.0,39978.0,0.3458]
[1645203602673,0.0098,39990.0,39981.0,0.01741932]
[1645203602871,0.2191,39991.0,39982.0,0.0458]
[1645203603071,0.2191,39991.0,39984.0,0.00049692]
[1645203603323,0.2191,39991.0,39985.0,0.0458]
[1645203603522,0.2191,39991.0,39986.0,0.0458]
[1645203603523,0.009,39990.0,39986.0,0.0458]
[1645203603724,0.08571639,39987.0,39981.0,0.31741932]
[1645203603922,0.09950308,39997.0,39982.0,0.0458]
[1645203604321,0.5908,39998.0,39983.0,0.362551]
[1645203604322,0.33873034,39990.0,39983.0,0.362551]
[1645203604520,0.5908,39998.0,39984.0,0.062551]
[1645203604722,0.17004569,39997.0,39985.0,0.052]
[1645203604921,0.5908,39998.0,39986.0,0.05]
[1645203605120,0.5908,39998.0,39987.0,0.0458]
[1645203605323,0.08571639,39992.0,39988.0,0.10466405]
[1645203605520,0.18960671,39997.0,39989.0,0.0458]
[1645203605721,0.18960671,39997.0,39989.0,0.0358]
[1645203605921,0.5908,39998.0,39994.0,0.12267121]
[1645203606121,0.0092,39998.0,39994.0,0.12267121]
[1645203606322,0.17004569,40004.0,39994.0,0.16847121]
[1645203606524,0.2452,40005.0,39995.0,0.3]
[1645203606726,0.08571639,40000.0,39996.0,0.10833]
[1645203606966,0.08571639,40000.0,39996.0,0.0458]
[1645203607167,0.20218834,40001.0,39996.0,0.0458]
[1645203607566,0.2452,40005.0,40000.0,0.10024626]
[1645203607769,0.30971778,40002.0,40001.0,0.0458]
[1645203608167,0.2452,40005.0,40001.0,0.0458]
[1645203608366,0.08571639,40003.0,40001.0,0.0458]
[1645203608566,0.2452,40005.0,40001.0,0.0458]
[1645203608768,0.236,40005.0,40001.0,0.3958]
[1645203608968,0.236,40005.0,40001.0,0.0958]
[1645203609166,0.25230368,40008.0,40003.0,0.13345334]
[1645203609371,0.332169,40007.0,40003.0,0.13345334]
[1645203609567,0.24977181,40007.0,40003.0,0.13345334]
[1645203609768,0.08571639,40005.0,40003.0,0.13345334]
[1645203609967,0.24977181,40007.0,39989.0,0.062542]
[1645203609968,1.0,40003.0,39989.0,0.062542]
[1645203610166,1.0,40003.0,39988.0,0.41758993]
[1645203610167,0.34043686,39997.0,39988.0,0.41758993]
[1645203610368,0.2557,40002.0,39988.0,0.41758993]
[1645203610848,0.25148986,40001.0,39988.0,0.41758993]
[1645203611039,0.2557,40002.0,39988.0,0.58013393]
[1645203611239,0.2465,40002.0,39989.0,0.0458]
[1645203611441,0.08356,40011.0,40001.0,0.10285459]
[1645203611442,0.31805067,40004.0,40001.0,0.10285459]
[1645203611642,0.41755375,40004.0,39988.0,0.06435203]
[1645203612042,0.23189757,40000.0,39988.0,0.06435203]
[1645203612239,0.0094,39999.0,39988.0,0.06435203]
[1645203612442,0.09950308,39998.0,39988.0,0.01855203]
[1645203612640,0.30315723,39998.0,39989.0,0.11750299]
[1645203612841,0.08571639,39994.0,39989.0,0.11750299]
[1645203613140,0.30315723,39998.0,39989.0,0.11750299]
[1645203613640,0.0094,39999.0,39989.0,0.11772776]
[1645203614040,0.0094,39999.0,39990.0,0.05]
[1645203614239,0.0094,39999.0,39990.0,0.05022477]
[1645203614471,0.08571639,39994.0,39990.0,0.05022477]
[1645203614676,0.0094,39999.0,39991.0,0.062541]
[1645203615071,0.0094,39999.0,39991.0,0.06276577]
[1645203615271,0.05,40005.0,39992.0,0.125065]
[1645203615472,0.0091,40004.0,40001.0,0.12492458]
[1645203615673,0.09950308,40011.0,40001.0,0.12492458]
[1645203615872,0.08571639,40004.0,40001.0,0.12492458]
[1645203616075,0.08571639,40004.0,40001.0,0.17492458]
[1645203616273,0.3,40017.0,40001.0,0.17492458]
[1645203616274,0.5374,40020.0,40002.0,1.55]
[1645203616471,0.5374,40020.0,40002.0,1.6021]
[1645203616472,0.0099,40017.0,40002.0,1.6021]
[1645203616672,0.22596773,40016.0,40011.0,0.11231657]
[1645203617070,0.25429769,40015.0,40011.0,0.11231657]
[1645203617276,0.25429769,40015.0,40010.0,0.0458]
[1645203617671,0.0099,40017.0,40010.0,0.0458]
[1645203617874,0.33900308,40019.0,40010.0,0.0458]
[1645203618072,0.33900308,40019.0,40010.0,0.0958]
[1645203618320,0.2395,40019.0,40010.0,0.0958]
[1645203618521,0.2395,40019.0,40012.0,0.062509]
[1645203618722,0.19487425,40023.0,40013.0,0.16048371]
[1645203619023,0.31622149,40024.0,40021.0,0.12189479]
[1645203619221,0.01,40029.0,40021.0,0.12189479]
[1645203619427,0.1,40039.0,40021.0,0.12189479]
[1645203619429,0.332169,40046.0,40026.0,0.09999999]
[1645203619726,0.3753,40045.0,40034.0,0.09999999]
[1645203619925,0.01,40049.0,40036.0,0.062465]
[1645203620125,0.01,40049.0,40037.0,0.0458]
[1645203620323,0.01,40049.0,40048.0,0.1040247]
[1645203620521,0.01,40049.0,40048.0,0.1498247]
[1645203620820,0.01,40049.0,40048.0,0.0458]
[1645203621021,0.337169,40049.0,40048.0,0.0458]
[1645203621222,0.005,40049.0,40048.0,0.0458]
[1645203623074,0.337169,40049.0,40048.0,0.0458]
[1645203623272,0.005,40049.0,40048.0,0.0458]
[1645203624474,0.005,40049.0,40039.0,0.3]
[1645203624475,0.005,40049.0,40042.0,0.09999999]
[1645203624674,0.005,40049.0,40042.0,0.0458]
[1645203624874,0.005,40049.0,40045.0,0.11907662]
[1645203625079,0.005,40049.0,40045.0,0.16907662]
[1645203625576,0.005,40049.0,40046.0,0.0095]
[1645203626428,0.005,40049.0,40046.0,0.3095]
[1645203626927,0.0094,40059.0,40049.0,0.01499999]
[1645203627926,0.0094,40059.0,40050.0,0.09999999]
[1645203628127,0.34353736,40056.0,40050.0,0.09999999]
[1645203628328,0.0094,40059.0,40050.0,0.09999999]
[1645203628528,0.0094,40059.0,40050.0,0.10838437]
[1645203628726,0.0094,40059.0,40050.0,0.062445]
[1645203628927,0.0094,40059.0,40049.0,1.01499999]
[1645203629573,0.26511572,40058.0,40049.0,1.01499999]
[1645203629972,0.0094,40059.0,40049.0,1.01499999]
[1645203630180,0.2288,40067.0,40057.0,0.09999999]
[1645203630379,0.06,40069.0,40058.0,0.0958]
[1645203630574,0.01,40069.0,40065.0,0.1030844]
[1645203630975,0.35878156,40069.0,40065.0,0.1030844]
[1645203631275,0.01,40069.0,40065.0,0.1030844]
[1645203631876,0.01,40069.0,40066.0,0.09999999]
[1645203632075,0.01,40069.0,40068.0,0.09999999]
[1645203632276,0.01,40069.0,40067.0,0.0094]
[1645203632676,0.01,40069.0,40065.0,0.1030844]
[1645203632879,0.01,40069.0,40066.0,0.0094]
[1645203634916,0.01,40069.0,40068.0,0.09999999]
[1645203635315,0.01,40069.0,40068.0,0.14999999]
[1645203635524,0.28581285,40089.0,40069.0,1.55]
[1645203635721,0.01,40089.0,40076.0,0.09999999]
[1645203635919,0.01,40089.0,40081.0,0.09999999]
[1645203636118,0.01,40089.0,40085.0,0.10665082]
[1645203636319,0.01,40089.0,40086.0,0.0458]
[1645203638177,0.01,40089.0,40080.0,0.1082]
[1645203638373,0.28638857,40086.0,40080.0,0.1082]
[1645203638573,0.01,40089.0,40080.0,0.21711175]
[1645203638773,0.01,40089.0,40080.0,0.15471175]
[1645203639273,0.00933541,40089.0,40080.0,0.15471175]
[1645203639473,0.21901683,40086.0,40080.0,0.15471175]
[1645203639676,0.21901683,40086.0,40080.0,0.0458]
[1645203639677,0.332169,40085.0,40080.0,0.0458]
[1645203639976,0.21901683,40086.0,40073.0,0.0458]
[1645203640174,0.21901683,40086.0,40070.0,0.09999999]
[1645203640175,0.0099,40084.0,40074.0,0.0458]
[1645203640373,0.0099,40084.0,40075.0,0.0458]
[1645203640574,0.26448052,40082.0,40076.0,0.0458]
[1645203640822,0.0099,40084.0,40077.0,0.0458]
[1645203641119,0.0099,40084.0,40078.0,0.0458]
[1645203641318,0.0099,40084.0,40079.0,0.0458]
[1645203641723,0.00933541,40089.0,40079.0,0.0458]
[1645203642420,0.00933541,40089.0,40086.0,0.09999999]
[1645203642619,0.00933541,40089.0,40088.0,0.10264328]
[1645203642819,0.30065461,40089.0,40088.0,0.10264328]
[1645203643020,0.00933541,40089.0,40088.0,0.10264328]
[1645203644121,0.00933541,40089.0,40088.0,0.15264328]
[1645203644321,0.00933541,40089.0,40088.0,0.19844328]
[1645203644776,0.00933541,40089.0,40088.0,0.0458]
[1645203645576,0.00933541,40089.0,40088.0,0.14579999]
[1645203646178,0.00933541,40089.0,40088.0,0.19579999]
[1645203646573,0.00933541,40089.0,40088.0,0.32340503]
[1645203646775,0.00933541,40089.0,40088.0,0.22340504]
[1645203646973,0.00933541,40089.0,40088.0,0.0958]
[1645203647174,0.00933541,40089.0,40088.0,0.0458]
[1645203648828,0.00933541,40089.0,40088.0,0.16497497]
[1645203649725,0.01238488,40089.0,40088.0,0.16497497]
[1645203650123,0.00602327,40090.0,40089.0,1.55]
[1645203650326,0.00602327,40090.0,40089.0,1.6958]
[1645203650624,0.00602327,40090.0,40089.0,1.6658]
[1645203651025,0.0096,40102.0,40089.0,1.6658]
[1645203651224,0.0096,40102.0,40091.0,0.09999999]
[1645203651428,0.0096,40102.0,40092.0,1.55]
[1645203651626,0.2548,40113.0,40101.0,0.09999999]
[1645203651825,0.0093,40112.0,40101.0,0.09999999]
[1645203652076,0.27771554,40107.0,40102.0,0.11701481]
[1645203652276,0.0093,40112.0,40102.0,0.11701481]
[1645203652480,0.05,40120.0,40106.0,0.062347]
[1645203653077,0.05,40120.0,40106.0,0.16234699]
[1645203653575,0.20110813,40113.0,40106.0,0.09999999]
[1645203653979,0.20110813,40113.0,40106.0,0.09919145]
[1645203654176,0.20110813,40113.0,40104.0,0.3]
[1645203654177,0.25683949,40112.0,40104.0,0.05]
[1645203654477,0.25683949,40112.0,40104.0,0.0458]
[1645203654678,0.332169,40108.0,40104.0,0.0458]
[1645203654877,0.332169,40108.0,40096.0,0.3]
[1645203654878,0.0091,40111.0,40097.0,0.0091]
[1645203655077,0.01068091,40111.0,40097.0,0.0091]
[1645203655277,0.0091,40111.0,40097.0,0.0091]
[1645203655476,0.33533756,40103.0,40098.0,0.1280615]
[1645203655718,0.20942336,40106.0,40098.0,0.1280615]
[1645203655719,0.0091,40111.0,40098.0,0.1280615]
[1645203656119,0.0091,40111.0,40098.0,0.1904325]
[1645203656318,0.0091,40111.0,40097.0,0.0091]
[1645203656522,0.32301659,40105.0,40097.0,0.0091]
[1645203657419,0.11357555,40102.0,40097.0,0.0091]
[1645203657620,0.11357555,40102.0,40091.0,0.09841908]
[1645203658022,0.35141503,40096.0,40091.0,0.09841908]
[1645203658221,0.35141503,40096.0,40092.0,0.0091]
[1645203658626,0.11636839,40089.0,40082.0,0.249552]
[1645203658826,0.11636839,40089.0,40077.0,0.0094]
[1645203659128,0.3097,40095.0,40077.0,0.0094]
[1645203659488,0.0097,40095.0,40084.0,0.09841908]
[1645203659877,0.0097,40095.0,40084.0,0.16081108]
[1645203660177,0.0097,40095.0,40081.0,0.124781]